{"text_format":"1","workbook":"xlsx","n_sheets":1,"sheets":["Escalier"],"not_rendered":{"charts":0,"images":1,"macros":1,"external_links":0,"defined_names":24,"comments":0,"pivot_tables":0},"unopened":[],"bounds":{"document_bytes":16777216,"sheet_cells":100000,"rows_first":2000,"rows_last":500,"rows_between":2000,"halvings":0,"cell_chars":16384,"cell_head_chars":4096},"cells_cut":0,"cells_raw":0,"read":"whole","date_system":"1900"}

{"sheet":"Escalier","index":0,"n_rows":45,"n_cols":20,"rows_kept":45,"cut":false,"hidden":false,"merged":[[37,2,37,3],[39,2,39,3],[44,17,44,19],[0,0,0,19],[2,0,2,19],[3,0,3,19],[28,9,31,9],[28,7,31,7],[28,6,31,6],[28,5,31,5],[6,0,7,0],[6,2,6,4]]}
["CALCUL D'UN ESCALIER MULTIVOLÉES"]
[null,null,null,null,null,null,null,null,null,null,null,null,null,null,null,null,null,null,null,"Lionel Ponnelle"]
["Utilisation de la feuille : Entrez vos dimensions dans les cases grises. Vous pouvez modifier la \"Valeur du pas\" en cliquant sur les 2 boutons flèches."]
["Vous pouvez modifier le \"Décalage de la 1ère marche à l'alignement de la trémie\" en utilisant les boutons [+ 1 cm], [- 1 cm ], [+ 1 mm] ou [-1 mm], dans le cas où la longueur de l'escalier est limitée par une porte ou un passage. Une valeur positive indique un allongement de la volée et une valeur négative indique un recul. Toutefois la \"Longueur réelle de l'escalier\"  ne peut pas dépasser la \"Longueur maximale de l'escalier\". Les résultats sont affichés dans les cases bleues. Les cases jaunes affichent des mesures secondaires."]
[]
[]
["Entrez les données de chaque partie de votre escalier","Partie droite","Partie tournante"]
[null,"Longueur de la volée droite","Angle","Rayon du jour","Ligne de foulée tournant"]
["1 ère section",20,90,0,{"$f":"(IF(Emmarchement/2>Ligne_de_foulée,Ligne_de_foulée,Emmarchement/2)+Rayon_jour_1)*PI()*Angle_1/180","v":62.831853071795862}]
["2 ème section",80,90,0,{"$f":"(IF(Emmarchement/2>Ligne_de_foulée,Ligne_de_foulée,Emmarchement/2)+Rayon_jour_2)*PI()*Angle_2/180","v":62.831853071795862}]
["3 ème section",20,null,0,{"$f":"(IF(Emmarchement/2>Ligne_de_foulée,Ligne_de_foulée,Emmarchement/2)+Rayon_jour_3)*PI()*Angle_3/180","v":0}]
["4 ème section",null,null,0,{"$f":"(IF(Emmarchement/2>Ligne_de_foulée,Ligne_de_foulée,Emmarchement/2)+Rayon_jour_4)*PI()*Angle_4/180","v":0}]
[]
[]
["Largeur de l'escalier :",80]
["Marche palière :",5]
["Distance maxi de la ligne de foulée"]
["par rapport à la rampe intérieure :",50]
[]
["Hauteur de l'escalier :",280]
[]
["Hauteur sous plafond :",250]
[null,null,null,null,null,null,null,null,null,null,null,null,{"$f":"SUM(Partie_droite)+SUM(Partie_tournante)-Marche_palière","v":240.66370614359172}]
["Hauteur de l'échappée :",200]
[]
["Valeur du pas de foulée :",60]
["Valeur réelle calculée :",{"$f":"2*Hauteur_marche+Giron","v":60.921428571428578}]
[]
["Nombre de marches :",{"$f":"ROUND((2*Hauteur_escalier+Longueur_reelle)/Pas_de_foulée,0)","v":14},null,null,null,{"$f":"Hauteur_escalier","v":280},{"$f":"Hauteur_sous_plafond","v":250},{"$f":"Echappée","v":200},null,{"$f":"B37","v":31.314865284979788}]
["(valeur non arrondie) :",{"$f":"(2*Hauteur_escalier+Longueur_reelle)/Pas_de_foulée","v":14.215000000000002}]
[]
["Hauteur de marche :",{"$f":"IF(Nombre_de_marches>0,Hauteur_escalier/Nombre_de_marches,0)","v":20}]
[]
["Giron de la marche :",{"$f":"IF(Nombre_de_marches>0,(Longueur_reelle)/Nombre_de_marches,0)","v":20.921428571428578}]
[]
["Décalage de la 1ère marche"]
["à l'alignement de la trémie :",{"$f":"Longueur_reelle-Giron-Ligne_de_foulée_trémie","v":31.314865284979788}]
[null,null,null,null,null,null,null,null,null,null,null,null,{"$f":"B44","v":43.7100878352203}]
[]
["Longueur réelle de l'escalier :",292.90000000000009]
[null,null,null,null,null,null,null,null,null,null,null,null,{"$f":"IF(Longueur_reelle>Longueur_maxi,Longueur_maxi,Longueur_reelle)","v":292.90000000000009}]
["Longueur maximale de l'escalier :",{"$f":"ROUND((Ligne_de_foulée_trémie)*Hauteur_escalier/(Hauteur_escalier-Hauteur_sous_plafond+Echappée),1)","v":293},null,null,null,null,null,null,null,null,null,null,{"$f":"Longueur_maxi","v":293}]
[]
["Angle d'inclinaison de l'escalier :",{"$f":"DEGREES(ATAN(Hauteur_escalier/Longueur_reelle))","v":43.7100878352203}]
[null,null,null,null,null,null,null,null,null,null,null,null,null,null,null,null,null,"mise à jour le 15-08-2017"]